bitfinex/quotes_SOLUSD_20220208
["timestamp","ask_amount","ask_price","bid_price","bid_amount"]
[1644296382809,1.47245946,118.44,118.39,34.8381158]
[1644296383013,39.82797604,118.44,118.39,34.8381158]
[1644296383212,39.82797604,118.44,118.38,6.0]
[1644296383213,1.19812394,118.43,118.38,6.0]
[1644296383510,1.19812394,118.43,118.36,24.0951]
[1644296383710,1.47245946,118.43,118.36,24.0951]
[1644296384010,1.19812394,118.42,118.36,24.0951]
[1644296384211,35.98232793,118.41,118.36,24.0951]
[1644296384410,35.98232793,118.41,118.35,60.377172]
[1644296384812,36.25666345,118.41,118.35,60.377172]
[1644296385011,0.27433552,118.41,118.35,60.377172]
[1644296385612,0.27433552,118.41,118.35,35.912972]
[1644296385815,1.47245946,118.41,118.35,35.912972]
[1644296386014,1.47245946,118.41,118.34,12.26]
[1644296386213,1.47245946,118.41,118.35,12.6726]
[1644296386419,1.47245946,118.41,118.34,18.26]
[1644296386619,1.19812394,118.4,118.34,6.0]
[1644296386819,1.19812394,118.39,118.34,6.0]
[1644296387020,36.89069145,118.39,118.33,12.26]
[1644296387218,49.56889145,118.39,118.27,66.5116]
[1644296387419,49.56889145,118.39,118.28,12.26]
[1644296387420,1.19812394,118.38,118.28,12.26]
[1644296387620,1.19812394,118.36,118.28,12.26]
[1644296387819,1.47245946,118.36,118.28,12.26]
[1644296388222,40.22619521,118.35,118.28,59.09327279]
[1644296388821,40.50053073,118.35,118.28,59.09327279]
[1644296389822,40.50053073,118.35,118.28,71.77367279]
[1644296391026,1.19812394,118.37,118.29,1.65239604]
[1644296391226,1.19812394,118.39,118.3,24.9354]
[1644296391426,1.19812394,118.41,118.31,153.22]
[1644296391625,1.19812394,118.41,118.32,12.26]
[1644296391825,1.19812394,118.4,118.32,12.26]
[1644296392024,1.19812394,118.4,118.33,35.34402431]
[1644296392226,1.19812394,118.41,118.34,24.9336]
[1644296393128,36.42412969,118.4,118.34,24.9336]
[1644296393327,36.42412969,118.4,118.35,35.86521602]
[1644296393529,1.44812394,118.41,118.35,35.86521602]
[1644296393727,1.44812394,118.41,118.34,24.9336]
[1644296393929,1.19812394,118.4,118.34,24.9336]
[1644296394228,1.19812394,118.4,118.34,12.26]
[1644296394829,48.60886997,118.39,118.34,60.39287877]
[1644296395028,1.44812394,118.41,118.34,60.39287877]
[1644296395829,1.44812394,118.41,118.34,73.06707877]
[1644296396033,34.55127518,118.4,118.34,73.06707877]
[1644296396529,33.55127518,118.4,118.34,73.06707877]
[1644296396930,33.55127518,118.4,118.34,79.06707877]
[1644296397329,33.55127518,118.4,118.34,73.06707877]
[1644296397731,1.19812394,118.41,118.34,73.06707877]
[1644296398632,40.40800667,118.41,118.34,73.06707877]
[1644296399031,1.19812394,118.41,118.34,73.06707877]
[1644296400132,47.91408474,118.4,118.34,24.9342]
[1644296400333,49.11220868,118.4,118.34,24.9342]
[1644296400533,49.11220868,118.4,118.34,12.26]
[1644296401137,49.11220868,118.4,118.34,54.06681903]
[1644296401538,47.91408474,118.4,118.34,54.06681903]
[1644296401933,47.91408474,118.4,118.34,12.26]
[1644296402332,49.11220868,118.4,118.34,12.26]
[1644296403736,49.11220868,118.4,118.34,12.51]
[1644296403934,25.19964684,118.44,118.34,25.1845]
[1644296404135,25.83984684,118.46,118.34,41.25402024]
[1644296404435,23.4327,118.46,118.34,192.8055]
[1644296404634,25.83984684,118.46,118.34,24.9345]
[1644296404841,12.6751,118.42,118.32,12.6758]
[1644296405038,41.79833565,118.41,118.33,47.69585461]
[1644296405536,41.79833565,118.41,118.32,12.26]
[1644296405735,42.04833565,118.41,118.32,12.26]
[1644296406135,42.04833565,118.41,118.33,12.6756]
[1644296406337,42.04833565,118.41,118.34,12.26]
[1644296406837,44.17838895,118.41,118.27,36.9703312]
[1644296407035,48.606,118.4,118.28,12.26]
[1644296407438,12.6816,118.37,118.28,30.9407]
[1644296407637,34.74067505,118.38,118.29,38.72642393]
[1644296407838,34.74067505,118.38,118.3,12.26]
[1644296408038,34.74067505,118.38,118.31,42.72214634]
[1644296408540,34.74067505,118.38,118.3,12.26]
[1644296408739,47.41937505,118.38,118.3,12.26]
[1644296409340,47.66937505,118.38,118.3,12.26]
[1644296409544,56.32537505,118.38,118.3,12.26]
[1644296409942,56.32537505,118.38,118.31,36.42853298]
[1644296410341,56.32537505,118.38,118.28,12.26]
[1644296410542,2.1300533,118.37,118.26,12.26]
[1644296410743,12.683,118.35,118.25,47.1041]
[1644296410946,21.923,118.35,118.19,176.6894]
[1644296411243,48.65043849,118.33,118.23,12.26]
[1644296411446,48.65043849,118.33,118.21,12.26]
[1644296411741,38.8885772,118.31,118.22,37.16277224]
[1644296412143,2.1300533,118.3,118.22,37.16277224]
[1644296412341,35.04013004,118.29,118.22,37.16277224]
[1644296413342,35.04013004,118.29,118.23,12.26]
[1644296413743,35.04013004,118.29,118.21,12.26]
[1644296413973,35.04013004,118.29,118.2,12.26]
[1644296414563,35.04013004,118.29,118.21,35.33895723]
[1644296414963,35.04013004,118.29,118.21,47.59895723]
[1644296416163,35.29013004,118.29,118.21,47.59895723]
[1644296416364,35.29013004,118.29,118.21,60.28725723]
[1644296416763,35.29013004,118.29,118.21,47.59895723]
[1644296418765,35.29013004,118.29,118.21,60.28725723]
[1644296419066,35.29013004,118.29,118.21,24.9483]
[1644296419265,35.29013004,118.29,118.21,12.26]
[1644296419564,37.42018334,118.29,118.21,12.26]
[1644296419964,37.42018334,118.29,118.19,47.7793]
[1644296420164,37.42018334,118.29,118.19,93.01625705]
[1644296420663,50.11078334,118.29,118.19,93.01625705]
[1644296420864,47.98073004,118.29,118.19,93.01625705]
[1644296421667,50.11078334,118.29,118.19,93.01625705]
[1644296422264,35.04013004,118.29,118.21,37.94034005]
[1644296422665,35.04013004,118.29,118.21,50.20034005]
[1644296424169,35.29013004,118.29,118.21,50.20034005]
[1644296424867,35.29013004,118.29,118.21,62.88784005]
[1644296425565,37.42018334,118.29,118.21,62.88784005]
[1644296425768,35.04013004,118.29,118.21,62.88784005]
[1644296427166,35.29013004,118.29,118.21,62.88784005]
[1644296430274,35.29013004,118.29,118.21,24.9475]
[1644296430473,2.1300533,118.28,118.21,12.26]
[1644296431274,45.3932325,118.27,118.21,12.26]
[1644296432373,45.6432325,118.27,118.21,12.26]
[1644296433874,45.6432325,118.27,118.21,48.63384507]
[1644296434273,45.6432325,118.27,118.21,12.26]
[1644296435675,45.6432325,118.27,118.21,51.10355766]
[1644296436984,45.6432325,118.27,118.21,12.26]
[1644296437184,54.2192325,118.27,118.21,12.26]
[1644296439187,45.6432325,118.27,118.21,12.26]
[1644296443194,45.6432325,118.27,118.19,47.7793]
[1644296443393,45.6432325,118.27,118.17,0.024]
[1644296443592,2.1300533,118.26,118.15,0.024]
[1644296444193,39.47872338,118.25,118.15,36.27205058]
[1644296444394,12.6961,118.23,118.15,36.27205058]
[1644296444596,47.38332804,118.22,118.15,36.27205058]
[1644296444795,56.94932804,118.22,118.15,36.27205058]
[1644296445697,56.94932804,118.22,118.15,48.96705058]
[1644296445895,47.38332804,118.22,118.15,48.96705058]
[1644296447398,47.63332804,118.22,118.15,48.96705058]
[1644296448200,47.63332804,118.22,118.15,12.719]
[1644296448600,47.63332804,118.22,118.15,0.024]
[1644296448799,47.63332804,118.22,118.14,26.2864174]
[1644296449006,62.45978134,118.22,118.14,1.7705174]
[1644296451109,86.09498134,118.22,118.14,1.7705174]
[1644296451412,100.6424334,118.22,118.14,1.7705174]
[1644296453009,48.02295342,118.2,118.14,1.7705174]
[1644296453210,43.16580616,118.18,118.14,1.7465174]
[1644296453609,37.73814126,118.16,118.14,1.7465174]
[1644296453810,1.88819695,118.15,118.14,1.7465174]
[1644296454510,1.88819695,118.15,118.08,0.024]
[1644296454714,14.59389695,118.15,118.08,0.024]
[1644296455532,42.33869622,118.14,118.08,0.024]
[1644296455733,42.33869622,118.14,118.06,65.39889684]
[1644296456131,42.58869622,118.14,118.06,65.39889684]
[1644296456832,12.7056,118.13,118.06,65.39889684]
[1644296457036,40.39205936,118.12,118.06,65.39889684]
[1644296457234,40.39205936,118.12,118.06,65.37489684]
[1644296457432,66.0552,118.16,118.06,65.37489684]
[1644296457633,23.7031,118.16,118.07,0.024]
[1644296457836,23.7031,118.16,118.07,12.7274]
[1644296458034,23.7031,118.16,118.08,0.024]
[1644296458434,38.38738475,118.15,118.08,38.27771766]
[1644296458834,51.09178475,118.15,118.08,38.27771766]
[1644296459734,51.09178475,118.15,118.08,0.024]
[1644296460134,53.22183805,118.15,118.06,0.024]
[1644296460835,53.47183805,118.15,118.06,46.17128503]
[1644296461036,53.47183805,118.15,118.07,0.024]
[1644296462038,51.34178475,118.15,118.07,0.024]
[1644296463937,12.9544,118.15,118.07,0.024]
[1644296464339,2.1300533,118.14,118.07,0.024]
[1644296464538,12.7081,118.12,118.02,24.349]
[1644296464754,12.7081,118.12,118.03,0.024]
[1644296464940,12.7081,118.12,118.02,0.024]
[1644296464941,2.1300533,118.11,118.02,0.024]
[1644296465141,14.6810533,118.11,118.02,0.024]
[1644296465342,35.73363168,118.1,118.02,38.18276218]
[1644296465545,2.1300533,118.11,118.03,0.024]
[1644296466142,23.8211,118.12,118.03,0.024]
[1644296466542,36.16827712,118.11,118.03,0.024]
[1644296466742,48.87797712,118.11,118.03,0.024]
[1644296468646,12.9597,118.11,118.03,0.024]
[1644296468846,0.25,118.11,118.03,0.024]
[1644296469249,24.0711,118.12,118.03,12.7316]
[1644296469445,24.0711,118.12,118.04,0.024]
[1644296469647,44.83680709,118.11,118.04,44.89425109]
[1644296470047,57.54610709,118.11,118.04,44.91825109]
[1644296470547,12.7093,118.11,118.04,44.91825109]
[1644296470949,23.8211,118.12,118.04,44.91825109]
[1644296471147,36.5289,118.12,118.04,44.91825109]
[1644296471547,37.21338428,118.11,118.04,44.91825109]
[1644296472247,0.25,118.11,118.04,44.91825109]
[1644296472448,12.9588,118.11,118.04,44.91825109]
[1644296472649,12.7088,118.11,118.04,50.91825109]
[1644296472848,12.9588,118.11,118.04,50.91825109]
[1644296473350,46.01152507,118.1,118.04,44.91825109]
[1644296473548,58.72122507,118.1,118.04,44.89425109]
[1644296473948,2.1300533,118.09,118.03,0.024]
[1644296474148,2.1300533,118.09,118.02,0.024]
[1644296474749,12.7147,118.07,118.02,0.024]
[1644296474950,23.0138,118.1,118.01,41.9355339]
[1644296475150,23.0138,118.1,118.01,41.9595339]
[1644296475853,8.61215836,118.14,118.01,54.4695339]
[1644296475854,2.1300533,118.14,118.01,54.4695339]
[1644296476050,37.48158754,118.13,118.03,42.9882806]
[1644296476251,37.48158754,118.13,118.04,0.024]
[1644296476454,39.61164084,118.13,118.04,0.024]
[1644296476852,12.7085,118.12,118.04,0.024]
[1644296477053,38.56197777,118.11,118.04,0.024]
[1644296477253,36.892,118.12,118.03,43.0122806]
[1644296477456,24.1835,118.12,118.03,55.7198806]
[1644296477653,0.25,118.13,118.04,0.024]
[1644296477855,12.7109,118.1,118.04,0.024]
[1644296478054,12.7109,118.1,118.03,43.0122806]
[1644296478460,2.1300533,118.11,118.03,43.0122806]
[1644296478657,0.25,118.13,118.03,43.0122806]
[1644296478856,0.25,118.13,118.04,0.024]
[1644296479056,12.9575,118.13,118.04,0.024]
[1644296479258,2.1300533,118.12,118.04,0.024]
[1644296479559,50.12895087,118.12,118.04,0.024]
[1644296479858,2.1300533,118.11,118.04,0.024]
[1644296480057,37.24289757,118.12,118.03,43.0122806]
[1644296480258,12.711,118.1,118.04,0.024]
[1644296480459,41.55542531,118.09,118.03,43.0122806]
[1644296480659,41.55542531,118.09,118.03,42.9882806]
[1644296480859,41.80542531,118.09,118.03,42.9882806]
[1644296481359,0.25,118.09,118.03,42.9882806]
[1644296481583,2.1300533,118.13,118.03,42.9882806]
[1644296481780,12.26,118.15,118.04,0.024]
[1644296481781,22.6175,118.14,118.04,0.024]
[1644296481982,22.6175,118.14,118.04,24.3101]
[1644296482381,38.10843216,118.13,118.05,41.48811823]
[1644296482581,38.10843216,118.13,118.06,0.024]
[1644296482582,50.81573216,118.13,118.06,0.024]
[1644296482782,38.35843216,118.13,118.05,41.51211823]
[1644296483785,38.35843216,118.13,118.05,54.21761823]
[1644296485386,0.25,118.13,118.05,54.21761823]
[1644296485585,24.3638,118.17,118.05,62.14938013]
[1644296485790,2.40714684,118.18,118.09,12.7013]
[1644296485987,3.61216091,118.21,118.1,0.024]
[1644296486186,22.6968,118.21,118.1,24.3688]
[1644296486392,45.23999975,118.2,118.11,38.97348367]
[1644296486590,57.93969975,118.2,118.11,38.97348367]
[1644296486792,12.6997,118.2,118.11,38.97348367]
[1644296486991,2.40714684,118.23,118.11,65.86464557]
[1644296487187,22.7034,118.24,118.11,64.18288367]
[1644296487788,47.09849546,118.23,118.13,43.95071073]
[1644296487989,47.09849546,118.23,118.13,56.21071073]
[1644296488188,47.09849546,118.23,118.13,56.46071073]
[1644296488587,47.09849546,118.23,118.13,56.21071073]
[1644296488789,47.34849546,118.23,118.15,34.75582767]
[1644296489487,12.6959,118.23,118.15,34.75582767]
[1644296490095,44.72324684,118.27,118.15,47.45072767]
[1644296490392,2.40714684,118.28,118.16,36.7677]
[1644296490594,35.78082361,118.26,118.17,34.24635865]
[1644296490790,35.78082361,118.26,118.16,60.7632]
[1644296491191,37.91087691,118.26,118.16,60.7632]
[1644296491791,37.91087691,118.26,118.17,37.21810103]
[1644296492790,50.60437691,118.26,118.17,37.21810103]
[1644296493190,50.85437691,118.26,118.17,37.21810103]
[1644296494193,48.72432361,118.26,118.17,37.21810103]
[1644296494491,36.03082361,118.26,118.17,49.47810103]
[1644296494691,36.03082361,118.26,118.19,38.12553277]
[1644296494991,36.03082361,118.26,118.17,12.26]
[1644296495291,36.03082361,118.26,118.17,12.51]
[1644296495691,36.03082361,118.26,118.18,12.6908]
[1644296495893,36.03082361,118.26,118.19,46.52588699]
[1644296496590,0.25,118.26,118.19,46.52588699]
[1644296496794,12.6913,118.28,118.19,46.52588699]
[1644296497295,60.4536,118.3,118.19,59.46588699]
[1644296497498,60.4536,118.3,118.2,12.26]
[1644296497692,60.4536,118.3,118.21,38.39792751]
[1644296497893,2.1300533,118.33,118.22,12.26]
[1644296498092,22.8397,118.35,118.22,18.26]
[1644296498294,22.8397,118.35,118.22,18.51]
[1644296498494,24.9697533,118.35,118.22,18.51]
[1644296498691,12.6849,118.34,118.22,30.9455]
[1644296498891,45.26948489,118.33,118.23,44.58460558]
[1644296499096,45.26948489,118.33,118.23,62.84460558]
[1644296499298,45.26948489,118.33,118.23,56.84460558]
[1644296499494,45.26948489,118.33,118.23,62.84460558]
[1644296499693,45.26948489,118.33,118.23,56.84460558]
[1644296500193,47.39953819,118.33,118.23,56.84460558]
[1644296500593,60.33573819,118.33,118.23,56.84460558]
[1644296500993,40.82431586,118.31,118.23,44.58460558]
[1644296502693,53.51261586,118.31,118.23,44.58460558]
[1644296503094,53.51261586,118.31,118.21,34.8697]
[1644296504095,53.51261586,118.31,118.22,36.96119806]
[1644296504298,53.76261586,118.31,118.22,36.96119806]
[1644296507702,53.76261586,118.31,118.21,34.8697]
[1644296507903,55.89266916,118.31,118.2,23.9698]
[1644296508103,81.51123233,118.31,118.18,24.7047]
[1644296508304,12.6932,118.27,118.18,24.7047]
[1644296508703,51.48768236,118.27,118.19,35.10963527]
[1644296508903,12.6932,118.27,118.19,35.10963527]
[1644296509102,24.2649,118.3,118.19,35.10963527]
[1644296509505,12.6905,118.29,118.19,35.10963527]
[1644296509906,45.74605585,118.28,118.19,35.10963527]
[1644296510110,47.87610915,118.28,118.19,35.10963527]
[1644296510308,2.1300533,118.27,118.19,35.10963527]
[1644296510508,44.52029209,118.26,118.19,35.10963527]
[1644296510808,57.21399209,118.26,118.19,35.10963527]
[1644296511007,2.1300533,118.25,118.11,42.3135]
[1644296511208,2.1300533,118.25,118.14,12.26]
[1644296511408,47.3581,118.24,118.12,35.3738]
[1644296511608,58.2751,118.24,118.12,35.3738]
[1644296511812,60.6551533,118.24,118.12,35.3978]
[1644296512010,50.07565428,118.23,118.13,44.87970662]
[1644296512410,48.65309233,118.21,118.13,44.87970662]
[1644296512610,58.91209233,118.21,118.13,44.87970662]
[1644296513110,12.6998,118.2,118.13,44.87970662]
[1644296513311,37.11606403,118.19,118.13,44.87970662]
[1644296514416,12.6998,118.2,118.13,44.87970662]
[1644296515233,12.9498,118.2,118.13,44.87970662]
[1644296515413,40.31408022,118.19,118.13,44.87970662]
[1644296515914,0.25,118.2,118.13,44.87970662]
[1644296516921,40.99332247,118.23,118.13,44.87970662]
[1644296517418,43.12337577,118.23,118.13,44.87970662]
[1644296517618,40.99332247,118.23,118.13,44.87970662]
[1644296518621,53.68982247,118.23,118.13,59.50804818]
[1644296518823,53.93982247,118.23,118.13,59.50804818]
[1644296519924,53.93982247,118.23,118.13,59.25804818]
[1644296520125,53.93982247,118.23,118.13,57.57570662]
[1644296520422,0.25,118.23,118.16,12.6926]
[1644296520623,0.25,118.23,118.17,12.26]
[1644296520821,2.40714684,118.29,118.17,12.26]
[1644296521024,4.80904424,118.29,118.17,12.26]
[1644296521227,43.20938718,118.28,118.18,37.06856738]
[1644296521823,40.21816922,118.26,118.18,37.06856738]
[1644296523343,52.91096922,118.26,118.18,37.06856738]
[1644296524346,53.16096922,118.26,118.18,37.06856738]
[1644296524746,54.36175672,118.26,118.18,37.06856738]
[1644296525148,53.16096922,118.26,118.18,37.06856738]
[1644296525947,54.36175672,118.26,118.18,37.06856738]
[1644296528352,14.1435875,118.26,118.18,37.06856738]
[1644296528552,14.1435875,118.26,118.18,51.01090894]
[1644296528553,1.2007875,118.26,118.18,51.01090894]
[1644296528753,1.2007875,118.27,118.18,51.26090894]
[1644296528954,37.2172875,118.28,118.18,51.26090894]
[1644296529356,36.73013067,118.27,118.18,51.26090894]
[1644296529856,36.73013067,118.27,118.18,63.95200894]
[1644296530754,36.73013067,118.27,118.18,69.95200894]
[1644296530954,36.73013067,118.27,118.18,62.26966738]
[1644296531354,36.73013067,118.27,118.18,63.95200894]
[1644296532154,36.73013067,118.27,118.18,63.70200894]
[1644296532358,36.98013067,118.27,118.18,62.01966738]
[1644296532554,49.67133067,118.27,118.18,62.01966738]
[1644296532755,49.67133067,118.27,118.18,24.9511]
[1644296532956,2.1300533,118.26,118.16,35.6646]
[1644296533154,3.3308408,118.26,118.16,23.4046]
[1644296533355,1.2007875,118.25,118.14,23.3821]
[1644296533556,12.6962,118.23,118.14,23.3821]
[1644296533755,52.08879515,118.23,118.15,37.55944532]
[1644296534155,1.2007875,118.25,118.15,50.25404532]
[1644296534355,1.2007875,118.25,118.15,62.76404532]
[1644296534756,12.6936,118.25,118.16,1.68234156]
[1644296534957,12.6936,118.25,118.16,12.26]
[1644296535156,54.64197747,118.25,118.17,41.43943671]
[1644296535356,54.64197747,118.25,118.17,41.68943671]
[1644296535558,41.94837747,118.25,118.17,54.38113671]
[1644296535757,42.19837747,118.25,118.17,54.38113671]
[1644296536457,0.25,118.25,118.17,54.38113671]
[1644296536858,13.8921875,118.27,118.17,54.38113671]
[1644296537359,58.3537216,118.26,118.17,54.38113671]
[1644296539471,58.6037216,118.26,118.17,54.38113671]
[1644296540175,58.6037216,118.26,118.17,54.13113671]
[1644296540772,59.8045091,118.26,118.17,54.13113671]
[1644296541172,58.6037216,118.26,118.17,54.13113671]
[1644296541574,59.8045091,118.26,118.17,54.13113671]
[1644296543275,59.8045091,118.26,118.17,54.38113671]
[1644296543475,58.6037216,118.26,118.17,54.38113671]
[1644296543776,59.8045091,118.26,118.17,54.38113671]
[1644296544176,59.8045091,118.26,118.17,66.64113671]
[1644296544676,59.8045091,118.26,118.17,66.39113671]
[1644296545278,1.2007875,118.25,118.17,66.39113671]
[1644296545476,34.99162053,118.24,118.17,66.39113671]
[1644296546477,34.99162053,118.24,118.17,24.9517]
[1644296547278,47.68492053,118.24,118.17,24.9517]
[1644296547479,47.68492053,118.24,118.17,64.26938163]
[1644296547888,47.68492053,118.24,118.17,24.9517]
[1644296548079,61.91876133,118.24,118.16,24.9728]
[1644296548280,1.2007875,118.23,118.16,24.9728]
[1644296548479,12.6964,118.21,118.14,23.3821]
[1644296548880,59.73109143,118.21,118.15,46.17434455]
[1644296549081,47.03469143,118.21,118.15,58.86974455]
[1644296549280,47.28469143,118.21,118.15,12.6954]
[1644296549780,59.98099143,118.21,118.14,23.3821]
[1644296550388,59.98099143,118.21,118.14,66.29951988]
[1644296550585,59.98099143,118.21,118.14,78.99601988]
[1644296552192,59.98099143,118.21,118.14,79.24601988]
[1644296552394,59.98099143,118.21,118.14,78.99601988]
[1644296557808,47.28469143,118.21,118.14,78.99601988]
[1644296558010,0.25,118.21,118.14,79.24601988]
[1644296558206,12.6946,118.23,118.14,79.24601988]
[1644296558910,39.4736958,118.22,118.14,79.24601988]
[1644296559107,39.4736958,118.22,118.14,78.99601988]
[1644296560210,39.7236958,118.22,118.14,78.99601988]
[1644296560814,52.4185958,118.22,118.14,78.99601988]
[1644296561310,53.62285207,118.22,118.14,78.99601988]
[1644296564211,53.37285207,118.22,118.14,78.99601988]
[1644296565014,53.37285207,118.22,118.14,36.0786]
[1644296565215,67.23690537,118.22,118.13,24.9579]
[1644296565414,67.23690537,118.22,118.13,12.6979]
[1644296565415,1.20425627,118.21,118.13,12.6979]
[1644296565614,12.6988,118.19,118.12,24.6448]
[1644296566017,38.12584449,118.18,118.12,24.6448]
[1644296566215,49.12184449,118.18,118.12,24.6448]
[1644296566415,51.25189779,118.18,118.11,45.27746821]
[1644296566616,49.12184449,118.18,118.11,45.25346821]
[1644296566815,49.12184449,118.18,118.11,45.27746821]
[1644296567215,1.20425627,118.19,118.11,57.97766821]
[1644296567716,1.20425627,118.21,118.11,57.97766821]
[1644296567916,1.20425627,118.21,118.11,70.23766821]
[1644296568315,42.83168849,118.2,118.11,70.23766821]
[1644296568517,42.83168849,118.2,118.11,70.48766821]
[1644296568716,55.77908849,118.2,118.11,70.23766821]
[1644296569318,55.77908849,118.2,118.11,70.48766821]
[1644296569517,55.77908849,118.2,118.11,70.23766821]
[1644296569718,55.77908849,118.2,118.11,70.48766821]
[1644296569918,12.9474,118.2,118.11,72.17038556]
[1644296570223,1.20425627,118.21,118.11,78.17038556]
[1644296570425,1.20425627,118.23,118.15,12.693]
[1644296571023,55.8258182,118.22,118.15,12.693]
[1644296571221,55.8258182,118.22,118.16,38.4780359]
[1644296571422,54.62156193,118.22,118.16,38.4780359]
[1644296571629,54.87156193,118.22,118.16,51.1730359]
[1644296573224,54.87156193,118.22,118.16,12.695]
[1644296574032,56.0758182,118.22,118.16,12.695]
[1644296576328,56.0758182,118.22,118.17,37.56106963]
[1644296576528,14.14955627,118.22,118.17,50.25506963]
[1644296576730,1.45425627,118.22,118.17,50.50506963]
[1644296576931,0.25,118.22,118.17,50.50506963]
[1644296577228,1.20425627,118.25,118.17,58.19317222]
[1644296577431,1.20425627,118.26,118.18,12.26]
[1644296577630,41.26177841,118.26,118.2,12.6881]
[1644296577827,41.26177841,118.26,118.21,37.56106963]
[1644296578329,1.20425627,118.27,118.21,37.56106963]
[1644296579329,39.37108077,118.26,118.21,37.56106963]
[1644296579731,39.37108077,118.26,118.22,12.6886]
[1644296580831,39.62108077,118.26,118.22,12.6886]
[1644296581635,0.25,118.26,118.22,12.6886]
[1644296581835,1.20425627,118.27,118.22,12.6886]
[1644296582135,1.20425627,118.28,118.22,12.6886]
[1644296582755,44.48743944,118.27,118.22,12.6886]
[1644296583155,45.69169571,118.27,118.22,12.6886]
[1644296583356,1.45425627,118.27,118.22,12.6886]
[1644296583560,0.25,118.27,118.22,12.6886]
[1644296583867,1.20425627,118.28,118.22,24.9486]
[1644296584457,1.20425627,118.28,118.23,45.14995436]
[1644296584659,1.20425627,118.28,118.24,12.6862]
[1644296584859,6.2398747,118.32,118.25,39.77386014]
[1644296585159,1.70130886,118.32,118.26,12.26]
[1644296585365,1.70130886,118.32,118.26,12.51]
[1644296585959,39.86378193,118.32,118.27,36.07703572]
[1644296586159,39.86378193,118.32,118.27,12.26]
[1644296586461,39.86378193,118.32,118.27,12.51]
[1644296586861,1.95130886,118.32,118.27,12.51]
[1644296587463,1.95130886,118.32,118.28,12.6794]
[1644296588361,45.81942259,118.31,118.28,12.6794]
[1644296588561,1.95130886,118.32,118.28,12.6794]
[1644296589561,42.81265058,118.32,118.28,12.6794]
[1644296590562,1.95130886,118.32,118.28,12.6794]
[1644296591571,1.95130886,118.32,118.29,57.83775487]
[1644296591764,1.95130886,118.32,118.3,3.03219997]
[1644296592366,1.70130886,118.32,118.3,3.03219997]
[1644296592565,1.70130886,118.32,118.3,15.71079997]
[1644296593266,1.70130886,118.32,118.3,15.96079997]
[1644296593667,1.70130886,118.32,118.3,15.71079997]
[1644296593869,1.70130886,118.32,118.3,34.22079997]
[1644296594367,1.70130886,118.32,118.3,28.22079997]
[1644296594867,1.70130886,118.32,118.3,27.97079997]
[1644296596368,1.70130886,118.32,118.3,15.29219997]
[1644296598770,1.70130886,118.32,118.3,15.54219997]
[1644296599773,1.70130886,118.32,118.3,28.22009997]
[1644296600374,1.70130886,118.32,118.31,35.30677036]
[1644296601974,1.70130886,118.32,118.3,15.96009997]
[1644296602173,1.70130886,118.32,118.3,15.71009997]
[1644296603876,42.62401886,118.31,118.3,15.71009997]
[1644296604081,42.62401886,118.31,118.3,3.03219997]
[1644296604277,44.51221581,118.31,118.28,12.6798]
[1644296604976,44.51221581,118.31,118.27,12.26]
[1644296605176,44.51221581,118.31,118.26,24.9418]
[1644296605981,44.51221581,118.31,118.24,12.26]
[1644296606380,44.51221581,118.31,118.21,36.7889]
[1644296606681,46.64226911,118.31,118.21,12.26]
[1644296606879,44.51221581,118.31,118.21,12.26]
[1644296607779,57.44871581,118.31,118.21,24.9479]
[1644296610783,57.44871581,118.31,118.21,25.1979]
[1644296611385,57.44871581,118.31,118.21,50.0532]
[1644296611585,44.76221581,118.31,118.21,57.74130259]
[1644296612487,44.76221581,118.31,118.21,26.63600259]
[1644296612689,59.57846911,118.31,118.21,24.9479]
[1644296612888,59.57846911,118.31,118.21,12.26]
[1644296614787,59.57846911,118.31,118.21,24.9484]
[1644296615787,59.32846911,118.31,118.21,24.9484]
[1644296615987,59.32846911,118.31,118.21,48.4375]
[1644296616187,59.32846911,118.31,118.21,48.1875]
[1644296616392,57.19841581,118.31,118.21,48.1875]
[1644296616610,57.19841581,118.31,118.21,56.12560259]
[1644296616808,44.51221581,118.31,118.21,56.12560259]
[1644296618211,44.76221581,118.31,118.21,56.12560259]
[1644296619013,44.51221581,118.31,118.21,56.12560259]
[1644296619213,1.88819695,118.31,118.21,209.34560259]
[1644296619516,1.88819695,118.31,118.24,12.6801]
[1644296619713,1.88819695,118.31,118.25,12.26]
[1644296619914,1.70130886,118.32,118.25,13.94810259]
[1644296620213,1.95130886,118.32,118.26,40.19468764]
[1644296620413,1.95130886,118.32,118.27,12.26]